bitfinex/quotes_SOLUSD_20220101
["timestamp","ask_amount","ask_price","bid_price","bid_amount"]
[1641068946771,24.49643283,178.89,178.78,19.61219368]
[1641068947171,24.53643283,178.89,178.78,19.61219368]
[1641068947371,24.53643283,178.89,178.78,19.35219368]
[1641068948171,25.79553283,178.89,178.78,19.35219368]
[1641068948576,0.04,178.89,178.78,19.35219368]
[1641068949675,0.04,178.89,178.78,28.58325988]
[1641068950494,0.04,178.89,178.78,28.84325988]
[1641068953701,0.04,178.89,178.78,28.58325988]
[1641068954802,31.35962357,178.89,178.78,28.58325988]
[1641068955202,0.04,178.89,178.78,28.58325988]
[1641068956002,0.04,178.89,178.78,28.84325988]
[1641068959106,0.04,178.89,178.78,28.58325988]
[1641068959908,0.04,178.89,178.78,132.71325988]
[1641068960609,0.04,178.89,178.78,132.97325988]
[1641068963911,0.04,178.89,178.78,132.71325988]
[1641068965412,0.04,178.89,178.78,132.97325988]
[1641068968114,0.04,178.89,178.78,132.71325988]
[1641068969113,1.3039,178.89,178.78,132.71325988]
[1641068969615,1.3039,178.89,178.78,132.97325988]
[1641068971215,0.04,178.89,178.78,189.28325988]
[1641068973823,0.04,178.89,178.78,132.97325988]
[1641068974020,0.04,178.89,178.78,132.71325988]
[1641068974924,0.04,178.89,178.78,189.02325988]
[1641068975122,0.04,178.89,178.78,132.71325988]
[1641068975525,0.04,178.89,178.78,132.97325988]
[1641068975924,0.04,178.89,178.78,132.71325988]
[1641068976149,0.04,178.89,178.79,104.13]
[1641068976350,0.04,178.89,178.84,8.384]
[1641068976550,0.04,178.89,178.83,27.9464]
[1641068976551,0.04,178.89,178.85,8.33]
[1641068976749,0.04,178.89,178.86,8.33]
[1641068976950,0.04,178.89,178.83,27.9464]
[1641068977153,6.06210272,178.88,178.84,8.33]
[1641068977352,6.06210272,178.88,178.86,8.384]
[1641068977557,6.06210272,178.88,178.86,8.644]
[1641068978353,35.56841545,178.88,178.81,8.33]
[1641068979255,35.56841545,178.88,178.82,8.3864]
[1641068982055,0.32172916,178.84,178.82,108.3864]
[1641068983058,22.87966443,178.84,178.82,48.58771278]
[1641068983256,22.87966443,178.84,178.74,8.33]
[1641068983655,23.13966443,178.84,178.74,8.33]
[1641068983857,22.87966443,178.84,178.74,8.33]
[1641068984059,22.87966443,178.84,178.75,8.3893]
[1641068984263,32.95515811,178.84,178.72,8.33]
[1641068984660,32.95515811,178.84,178.69,8.33]
[1641068984862,1.32,178.83,178.69,8.33]
[1641068985162,8.3919,178.78,178.69,8.33]
[1641068985563,8.6519,178.78,178.66,36.302]
[1641068986161,8.3919,178.78,178.66,36.302]
[1641068986562,8.3919,178.78,178.66,35.802]
[1641068986963,8.6519,178.78,178.66,35.802]
[1641068987361,9.1519,178.78,178.66,35.802]
[1641068987562,9.1519,178.78,178.7,8.3924]
[1641068987967,1.42669368,178.77,178.66,27.472]
[1641068988163,8.3936,178.74,178.64,36.3078]
[1641068989471,8.6536,178.74,178.64,8.33]
[1641068989670,10.08029368,178.74,178.64,8.33]
[1641068990371,8.6536,178.74,178.65,8.3947]
[1641068990573,10.08029368,178.74,178.65,8.3947]
[1641068991173,10.08029368,178.74,178.6,8.33]
[1641068991972,8.6536,178.74,178.6,8.33]
[1641068992177,8.6536,178.74,178.63,8.3955]
[1641068992472,0.32172916,178.68,178.63,8.3955]
[1641068994998,8.71802916,178.68,178.62,8.3963]
[1641068998004,8.75802916,178.68,178.62,8.3963]
[1641068998409,8.75802916,178.68,178.55,43.82944708]
[1641068998605,8.75802916,178.68,178.55,8.33]
[1641068998606,8.3982,178.64,178.55,8.33]
[1641068998805,1.42669368,178.67,178.55,8.33]
[1641068998806,1.2639,178.67,178.55,8.33]
[1641068999008,1.5239,178.67,178.55,8.33]
[1641068999508,1.5239,178.67,178.58,8.3979]
[1641069000107,8.3983,178.65,178.58,8.3979]
[1641069000309,1.2639,178.67,178.58,8.3979]
[1641069000612,0.36172916,178.68,178.58,8.3979]
[1641069001408,0.36172916,178.68,178.58,8.6579]
[1641069001606,0.36172916,178.68,178.58,8.3979]
[1641069002010,0.36172916,178.68,178.58,8.6579]
[1641069002206,0.36172916,178.68,178.58,8.3979]
[1641069003208,0.04,178.64,178.58,8.3979]
[1641069003612,0.04,178.64,178.58,8.07617084]
[1641069006809,0.04,178.64,178.51,8.33]
[1641069007010,0.04,178.64,178.48,84.1757]
[1641069007612,8.4383,178.64,178.48,112.1785]
[1641069007811,27.64283799,178.62,178.48,36.3328]
[1641069008009,27.90283799,178.62,178.48,36.3328]
[1641069008410,27.64283799,178.62,178.48,8.33]
[1641069009013,36.04233799,178.62,178.55,8.3995]
[1641069009212,8.3995,178.62,178.55,8.3995]
[1641069009416,0.04,178.64,178.55,8.3995]
[1641069010617,8.4386,178.64,178.55,8.3995]
[1641069011115,8.6986,178.64,178.58,0.02]
[1641069011515,8.4386,178.64,178.58,0.02]
[1641069011719,8.6986,178.64,178.58,0.02]
[1641069013220,8.6986,178.64,178.55,0.02]
[1641069014228,17.0286,178.64,178.55,0.02]
[1641069014429,1.245,178.63,178.55,0.02]
[1641069014630,8.4016,178.59,178.55,0.02]
[1641069014829,33.5110563,178.59,178.55,0.02]
[1641069015030,33.7710563,178.59,178.55,0.02]
[1641069015630,35.19774998,178.59,178.44,8.33]
[1641069015830,35.19774998,178.59,178.45,79.6877]
[1641069016130,35.19774998,178.59,178.44,8.33]
[1641069016530,44.02774998,178.59,178.46,8.4038]
[1641069017340,44.02774998,178.59,178.42,8.33]
[1641069017937,44.06774998,178.59,178.42,8.33]
[1641069018135,1.2215,178.58,178.44,8.4043]
[1641069018337,8.4043,178.51,178.44,8.4043]
[1641069018734,26.74432755,178.52,178.44,8.4043]
[1641069019138,28.0144,178.56,178.44,8.4043]
[1641069019340,8.4024,178.55,178.44,15.8123]
[1641069020437,8.4024,178.55,178.44,8.4043]
[1641069020840,8.402,178.56,178.44,8.6643]
[1641069021048,8.402,178.56,178.44,8.4043]
[1641069021249,2.5042,178.58,178.44,8.6643]
[1641069021849,8.4013,178.58,178.44,16.9943]
[1641069022051,0.04,178.59,178.44,18.42099368]
[1641069022251,0.04,178.59,178.45,104.13]
[1641069022450,0.04,178.59,178.52,8.3993]
[1641069022652,0.04,178.59,178.52,16.7293]
[1641069023050,0.04,178.56,178.52,16.7293]
[1641069023852,0.04,178.56,178.52,8.3993]
[1641069025854,0.04,178.56,178.5,8.4016]
[1641069026057,0.04,178.56,178.47,8.33]
[1641069027056,0.04,178.56,178.52,8.4008]
[1641069027256,0.04,178.56,178.47,8.33]
[1641069028959,0.04,178.56,178.45,1.3252]
[1641069029561,31.63626414,178.55,178.46,8.4033]
[1641069029960,31.89626414,178.55,178.46,8.4033]
[1641069031561,40.29906414,178.55,178.46,8.4033]
[1641069032161,31.89626414,178.55,178.46,8.4033]
[1641069032366,31.63626414,178.55,178.46,8.4033]
[1641069032662,0.04,178.56,178.46,8.4033]
[1641069033161,0.08,178.55,178.46,9.7226]
[1641069033361,0.08,178.55,178.46,9.9826]
[1641069033960,0.08,178.55,178.51,8.4009]
[1641069036163,0.08,178.55,178.51,7.9009]
[1641069036363,0.08,178.55,178.51,16.2309]
[1641069036965,0.08,178.55,178.53,8.3973]
[1641069037163,0.08,178.55,178.53,16.7273]
[1641069037363,0.08,178.55,178.53,16.9873]
[1641069037564,0.08,178.55,178.53,16.7273]
[1641069037764,0.08,178.55,178.53,17.9334]
[1641069038465,0.08,178.55,178.54,77.6604]
[1641069042971,0.08,178.55,178.54,77.9204]
[1641069043473,403.26177251,178.69,178.54,86.2504]
[1641069043674,394.86467251,178.69,178.54,87.67709368]
[1641069044479,28.68888483,178.7,178.54,87.67709368]
[1641069045678,28.68888483,178.7,178.61,8.3961]
[1641069046178,28.68888483,178.7,178.61,8.6561]
[1641069046786,1.50469971,178.78,178.62,8.33]
[1641069046986,1.50469971,178.78,178.63,151.9129]
[1641069047183,1.50469971,178.78,178.64,8.33]
[1641069047406,1.50469971,178.78,178.64,113.88669368]
[1641069047604,1.50469971,178.78,178.64,114.14669368]
[1641069047806,1.50469971,178.78,178.65,1.42669368]
[1641069048005,1.50469971,178.78,178.71,8.3881]
[1641069048208,24.4363304,178.79,178.71,16.7181]
[1641069048405,24.4363304,178.79,178.71,16.9781]
[1641069048607,1.50469971,178.84,178.71,16.9781]
[1641069048809,1.50469971,178.84,178.75,112.38082634]
[1641069049007,1.50469971,178.84,178.79,8.3871]
[1641069049210,1.50469971,178.89,178.79,8.3871]
[1641069049709,28.87653981,178.88,178.75,112.38082634]
[1641069049908,8.33,178.87,178.73,8.3898]
[1641069050108,8.33,178.87,178.7,84.9926]
[1641069050309,1.42669368,178.86,178.7,84.9926]
[1641069050610,10.01669368,178.86,178.7,76.6626]
[1641069051008,1.50469971,178.84,178.7,84.9926]
[1641069051209,22.43039875,178.83,178.7,84.9926]
[1641069051809,22.43039875,178.83,178.7,85.2526]
[1641069052614,22.43039875,178.83,178.75,8.3888]
[1641069053613,22.43039875,178.83,178.73,8.3899]
[1641069053811,22.69039875,178.83,178.73,8.3899]
[1641069054012,22.69039875,178.83,178.7,76.6626]
[1641069055613,22.69039875,178.83,178.73,8.3898]
[1641069056014,9.83469971,178.89,178.73,8.6498]
[1641069056215,9.83469971,178.89,178.73,8.3898]
[1641069056718,8.3898,178.86,178.73,8.3898]
[1641069057118,27.06787044,178.85,178.73,8.3898]
[1641069057519,27.32787044,178.85,178.73,8.3898]
[1641069058721,35.71807044,178.85,178.73,8.3898]
[1641069059721,35.71807044,178.85,178.71,8.3908]
[1641069060423,8.33,178.84,178.71,8.3908]
[1641069060626,8.3916,178.82,178.7,76.6626]
[1641069060824,28.41689602,178.81,178.7,76.6626]
[1641069061124,28.67689602,178.81,178.7,76.6626]
[1641069061526,28.67689602,178.81,178.67,37.6186]
[1641069061725,37.06929602,178.81,178.67,9.6502]
[1641069061925,37.56929602,178.81,178.67,9.6502]
[1641069062629,45.89929602,178.81,178.65,8.3936]
[1641069062834,47.3259897,178.81,178.65,8.3936]
[1641069063029,47.3259897,178.81,178.63,75.8911]
[1641069064725,47.3259897,178.81,178.63,84.2858]
[1641069065628,47.3259897,178.81,178.63,75.8911]
[1641069066051,47.3259897,178.81,178.61,10.9526]
[1641069066928,47.3259897,178.81,178.61,9.635]
[1641069067130,47.3259897,178.81,178.6,8.33]
[1641069068031,47.0659897,178.81,178.6,8.33]
[1641069068231,47.0659897,178.81,178.6,9.75669368]
[1641069068633,47.0659897,178.81,178.6,8.33]
[1641069069337,47.0659897,178.81,178.6,8.59]
[1641069069734,47.0659897,178.81,178.6,16.726]
[1641069070237,47.0659897,178.81,178.6,17.9734]
[1641069070636,47.3259897,178.81,178.6,17.9734]
[1641069071836,47.0659897,178.81,178.6,17.9734]
[1641069072036,47.0659897,178.81,178.6,18.2334]
[1641069072739,47.0659897,178.81,178.6,17.9734]
[1641069073038,47.3259897,178.81,178.6,17.9734]
[1641069075268,5.84367733,178.8,178.6,17.9734]
[1641069075467,27.17967352,178.73,178.6,17.9734]
[1641069075867,27.43967352,178.73,178.6,17.9734]
[1641069076668,27.43967352,178.73,178.6,9.6434]
[1641069080776,35.83537352,178.73,178.6,9.6434]
[1641069082378,36.33537352,178.73,178.6,9.6434]
[1641069082576,35.83537352,178.73,178.6,9.6434]
[1641069082977,27.43967352,178.73,178.6,9.6434]
[1641069085782,27.93967352,178.73,178.6,9.6434]
[1641069086384,35.83567352,178.73,178.6,9.6434]
[1641069086585,36.33567352,178.73,178.6,9.6434]
[1641069086985,36.07567352,178.73,178.6,9.6434]
[1641069087185,35.57567352,178.73,178.6,9.6434]
[1641069088488,35.83567352,178.73,178.6,9.6434]
[1641069088987,35.57567352,178.73,178.6,9.6434]
[1641069089388,36.07567352,178.73,178.6,9.6434]
[1641069089588,35.57567352,178.73,178.6,9.6434]
[1641069090593,27.17967352,178.73,178.6,9.6434]
[1641069091491,27.43967352,178.73,178.6,9.6434]
[1641069091693,27.17967352,178.73,178.6,9.6434]
[1641069093011,27.43967352,178.73,178.61,1.42669368]
[1641069093411,27.17967352,178.73,178.61,9.75669368]
[1641069094514,27.43967352,178.73,178.65,8.3944]
[1641069094714,9.7206,178.77,178.61,9.75669368]
[1641069094915,1.3262,178.77,178.65,1.42669368]
[1641069095213,9.6244,178.78,178.65,1.42669368]
[1641069095915,29.61346231,178.77,178.68,8.3934]
[1641069096216,29.61346231,178.77,178.61,9.75669368]
[1641069096413,29.61346231,178.77,178.62,73.7578]
[1641069096913,29.61346231,178.77,178.67,8.3937]
[1641069097113,29.87346231,178.77,178.67,8.3937]
[1641069097315,29.87346231,178.77,178.62,73.7578]
[1641069097512,29.87346231,178.77,178.62,74.9709]
[1641069097513,31.11246231,178.77,178.62,74.9709]
[1641069098615,39.50656231,178.77,178.65,8.3945]
[1641069098820,40.93325599,178.77,178.65,8.3945]
[1641069099422,41.43325599,178.77,178.65,8.3945]
[1641069100917,40.93325599,178.77,178.65,8.3945]
[1641069102720,8.33,178.76,178.64,8.3953]
[1641069102919,8.3956,178.74,178.64,8.3953]
[1641069103219,30.33062769,178.73,178.64,8.3953]
[1641069103620,30.59062769,178.73,178.64,8.3953]
[1641069104520,30.33062769,178.73,178.64,8.3953]
[1641069107422,30.59062769,178.73,178.64,8.3953]
[1641069110828,1.2944,178.78,178.64,8.3953]
[1641069111030,479.20713612,178.82,178.65,8.33]
[1641069111228,479.20713612,178.82,178.73,8.3911]
[1641069111627,486.09383641,178.82,178.68,27.9702]
[1641069111929,28.48615114,178.81,178.68,27.9702]
[1641069112329,28.74615114,178.81,178.69,1.2787]
[1641069112529,37.13815114,178.81,178.69,1.2787]
[1641069112827,38.56484482,178.81,178.69,1.2787]
[1641069113027,29.73725114,178.81,178.67,77.965]
[1641069113429,29.73725114,178.81,178.72,8.3917]
[1641069113629,38.12915114,178.81,178.68,1.2567]
[1641069113832,39.55584482,178.81,178.68,1.2567]
[1641069114029,47.88584482,178.81,178.68,1.2567]
[1641069114227,36.87805114,178.81,178.68,1.2567]
[1641069114428,477.70243641,178.82,178.74,8.3907]
[1641069114630,477.70243641,178.82,178.7,27.9681]
[1641069114932,92.9,178.8,178.7,27.9681]
[1641069115131,477.70243641,178.82,178.7,27.9681]
[1641069115329,9.6024,178.86,178.7,27.9681]
[1641069115330,22.43198303,178.83,178.7,27.9681]
[1641069115531,22.43198303,178.83,178.75,8.3898]
[1641069115931,95.60159368,178.87,178.75,8.3898]
[1641069116537,1.42669368,178.86,178.75,8.3898]
[1641069116937,28.41884158,178.85,178.75,8.3898]
[1641069117339,28.67884158,178.85,178.75,8.3898]
[1641069117738,28.41884158,178.85,178.75,8.3898]
[1641069120363,28.67884158,178.85,178.75,8.3898]
[1641069120967,28.17884158,178.85,178.75,8.3898]
[1641069122267,27.91884158,178.85,178.75,8.3898]
[1641069124068,28.17884158,178.85,178.75,8.3898]
[1641069125670,27.91884158,178.85,178.75,8.3898]
[1641069127072,28.17884158,178.85,178.75,8.3898]
[1641069127876,27.91884158,178.85,178.75,8.3898]
[1641069129280,28.17884158,178.85,178.75,8.3898]
[1641069132886,27.91884158,178.85,178.75,8.3898]
[1641069134186,28.17884158,178.85,178.75,8.3898]
[1641069137090,27.91884158,178.85,178.75,8.3898]
[1641069138489,28.17884158,178.85,178.75,8.3898]
[1641069138688,28.17884158,178.85,178.73,84.2733]
[1641069140594,36.56924158,178.85,178.73,84.2733]
[1641069142494,44.89924158,178.85,178.73,84.2733]
[1641069143296,36.24884158,178.85,178.73,84.2733]
[1641069143497,36.24884158,178.85,178.73,84.5333]
[1641069143697,9.83469971,178.89,178.73,92.8633]
[1641069143898,8.33,178.89,178.73,92.8633]
[1641069144700,30.08739968,178.88,178.73,92.6033]
[1641069144924,8.33,178.87,178.73,92.6033]
[1641069145722,1.2067,178.86,178.73,92.6033]
[1641069146124,1.4667,178.86,178.73,92.6033]
[1641069146526,1.4667,178.86,178.73,84.2733]
[1641069146726,9.8566,178.86,178.73,84.2733]
[1641069148727,1.4667,178.86,178.73,84.2733]
[1641069149326,0.26,178.86,178.73,92.6033]
[1641069149525,30.34739968,178.88,178.73,92.8633]
[1641069151227,30.34739968,178.88,178.73,92.6033]
[1641069152129,1.3239,178.87,178.73,92.6033]
[1641069152531,0.5839,178.87,178.73,92.6033]
[1641069153132,30.34739968,178.88,178.73,92.6033]
[1641069153439,30.34739968,178.88,178.73,94.28999368]
[1641069154530,30.34739968,178.88,178.73,94.02999368]
[1641069154734,30.34739968,178.88,178.73,92.6033]
[1641069154938,8.33,178.87,178.73,84.2733]
[1641069155335,8.3909,178.84,178.73,83.0051]
[1641069155537,23.62555825,178.83,178.73,83.0051]
[1641069155935,23.88555825,178.83,178.73,83.0051]
[1641069156136,23.88555825,178.83,178.73,8.3905]
[1641069156737,32.27645825,178.83,178.73,8.3905]
[1641069158542,8.33,178.82,178.69,8.3926]
[1641069158842,23.81982289,178.75,178.66,79.9621]
[1641069159043,24.07982289,178.75,178.66,79.9621]
[1641069159242,24.07982289,178.75,178.63,1.3095]
[1641069160745,24.07982289,178.75,178.68,8.3933]
[1641069160945,0.26,178.75,178.68,8.3933]
[1641069161345,8.33,178.79,178.68,8.3933]
[1641069161544,9.5605,178.82,178.68,8.3933]
[1641069161745,10.8036,178.82,178.68,8.3933]
[1641069161946,28.21346294,178.81,178.68,8.3933]
[1641069162347,8.3926,178.78,178.68,8.3933]
[1641069162547,28.31111973,178.77,178.68,8.3933]
[1641069162948,28.57111973,178.77,178.68,8.3933]
[1641069163648,8.3934,178.76,178.68,8.3933]
[1641069164148,8.6534,178.76,178.68,8.3933]
[1641069164755,0.26,178.76,178.68,8.3933]
[1641069165149,28.57111973,178.77,178.68,8.3933]
[1641069165751,28.31111973,178.77,178.68,8.3933]
[1641069167953,28.57111973,178.77,178.68,8.3933]
[1641069168757,36.96431973,178.77,178.68,8.3933]
[1641069169557,36.96431973,178.77,178.65,1.2712]
[1641069169754,36.96431973,178.77,178.67,8.3938]
[1641069170158,45.29431973,178.77,178.65,1.2712]
[1641069171376,45.29431973,178.77,178.62,75.0879]
[1641069171575,45.29431973,178.77,178.65,8.3946]
[1641069171776,45.29431973,178.77,178.62,76.4148]
[1641069172577,8.395,178.73,178.62,76.4148]
[1641069172778,22.61447349,178.72,178.62,76.4148]
[1641069172978,22.87447349,178.72,178.62,76.4148]
[1641069173178,22.87447349,178.72,178.65,8.3947]
[1641069176979,0.26,178.72,178.65,8.3947]
[1641069177381,8.33,178.75,178.65,8.3947]
[1641069177580,8.33,178.78,178.65,8.6547]
[1641069178182,8.33,178.83,178.66,8.33]
[1641069178384,8.33,178.88,178.67,1.2988]
[1641069178581,8.33,178.88,178.76,8.3887]
[1641069179182,29.1290114,178.87,178.76,8.3887]
[1641069179884,29.3890114,178.87,178.76,8.3887]
[1641069180183,28.8890114,178.87,178.76,8.3887]
[1641069180583,28.6290114,178.87,178.76,8.3887]
[1641069181985,28.8890114,178.87,178.76,8.3887]
[1641069185697,37.2778114,178.87,178.76,8.3887]
[1641069189820,28.8890114,178.87,178.76,8.3887]
[1641069191699,37.2190114,178.87,178.75,77.6597]
[1641069191901,37.2190114,178.87,178.75,76.3481]
[1641069192701,45.6081114,178.87,178.75,84.7382]
[1641069194105,45.6081114,178.87,178.76,1.2487]
[1641069194302,45.6081114,178.87,178.77,8.389]
[1641069198204,45.6081114,178.87,178.76,9.6384]
[1641069199808,45.6081114,178.87,178.76,8.3897]
[1641069202011,45.6081114,178.87,178.76,9.6593]
[1641069206025,47.03480508,178.87,178.76,9.6593]
[1641069206222,47.03480508,178.87,178.75,76.3481]
[1641069206824,47.53480508,178.87,178.75,76.3481]
[1641069207924,47.53480508,178.87,178.71,1.2785]
[1641069209022,47.53480508,178.87,178.72,8.3912]
[1641069209223,1.2347,178.86,178.72,8.3912]
[1641069209427,10.0647,178.86,178.72,8.3912]
[1641069209624,1.42669368,178.85,178.72,8.3912]
[1641069210024,1.68669368,178.85,178.72,8.3912]
[1641069210626,24.16180686,178.81,178.72,8.3912]
[1641069211124,24.42180686,178.81,178.72,8.3912]
[1641069212446,16.7206,178.84,178.72,8.3912]
[1641069212646,8.33,178.84,178.72,8.3912]
[1641069213247,8.33,178.84,178.76,8.3895]
[1641069213647,23.1527713,178.83,178.76,8.3895]
[1641069216050,23.4127713,178.83,178.76,8.3895]
[1641069216852,23.4127713,178.83,178.74,8.3904]
[1641069217054,23.4127713,178.83,178.73,1.219]
[1641069218051,23.1527713,178.83,178.73,1.219]
[1641069218452,23.1527713,178.83,178.73,29.1824]
[1641069219558,23.4127713,178.83,178.73,29.1824]
[1641069220156,23.4127713,178.83,178.78,8.3888]
[1641069223865,23.1527713,178.83,178.78,8.3888]
[1641069224162,8.33,178.89,178.78,8.3888]
[1641069224967,8.59,178.89,178.78,8.3888]
[1641069225166,27.30343084,178.88,178.78,8.3888]
[1641069225465,27.56343084,178.88,178.78,8.3888]
[1641069226664,27.06343084,178.88,178.78,8.3888]
[1641069228770,26.80343084,178.88,178.78,8.3888]
[1641069230371,27.06343084,178.88,178.78,9.6555]
[1641069231872,35.45193084,178.88,178.78,9.6555]
[1641069232676,27.06343084,178.88,178.78,9.6555]
[1641069243211,26.80343084,178.88,178.78,9.6555]
[1641069244510,27.06343084,178.88,178.78,9.6555]
[1641069245713,26.80343084,178.88,178.78,9.6555]
[1641069247112,27.06343084,178.88,178.78,9.6555]
[1641069248715,26.80343084,178.88,178.78,9.6555]
[1641069250018,27.06343084,178.88,178.78,9.6555]
[1641069252421,26.80343084,178.88,178.78,9.6555]
[1641069255023,26.80343084,178.88,178.78,9.9155]
[1641069256427,27.06343084,178.88,178.78,9.9155]
[1641069258130,27.06343084,178.88,178.78,9.6555]
[1641069262530,35.45183084,178.88,178.78,9.6555]
[1641069263432,8.33,178.87,178.68,88.0474]
[1641069263630,8.33,178.87,178.72,1.2242]
[1641069263830,1.42669368,178.86,178.72,1.2242]
[1641069264033,31.73788802,178.84,178.72,1.2242]
[1641069264230,40.06788802,178.84,178.72,1.2242]
[1641069264431,40.32788802,178.84,178.72,1.2242]
[1641069264856,41.7545817,178.84,178.72,1.2242]
[1641069265455,1.326,178.83,178.72,1.2242]
[1641069265658,30.90553011,178.8,178.73,8.3913]
[1641069266057,31.16553011,178.8,178.73,8.3913]
[1641069267557,8.33,178.86,178.73,8.3913]
[1641069267959,8.33,178.89,178.73,8.6513]
[1641069268157,8.33,178.89,178.74,1.285]
[1641069268558,29.30457959,178.88,178.74,1.285]
[1641069269156,29.56457959,178.88,178.74,1.285]
[1641069269359,30.78677959,178.88,178.74,1.285]
[1641069269557,39.17547959,178.88,178.79,8.3884]
[1641069270362,30.52677959,178.88,178.79,8.3884]
[1641069270561,29.30457959,178.88,178.79,8.3884]
[1641069271660,37.63457959,178.88,178.79,8.3884]
[1641069271859,37.89457959,178.88,178.79,8.3884]
[1641069272565,46.28287959,178.88,178.77,8.389]
[1641069277873,48.20957327,178.88,178.71,36.2957]
[1641069278071,48.20957327,178.88,178.72,1.2134]
[1641069278671,8.3902,178.84,178.72,1.2134]
[1641069278873,31.10764257,178.83,178.72,1.2134]
[1641069279073,31.36764257,178.83,178.73,27.9637]
[1641069279476,31.10764257,178.83,178.73,27.9637]
[1641069279875,31.10764257,178.83,178.71,8.33]
[1641069280073,31.10764257,178.83,178.77,8.3883]
[1641069280475,1.3203,178.87,178.77,8.3883]
[1641069280676,251.2967,178.9,178.77,9.81499368]
[1641069280874,251.2967,178.9,178.77,10.07499368]
[1641069281375,251.2967,178.9,178.77,8.3883]
[1641069281574,30.09823299,178.89,178.81,8.3872]
[1641069282976,30.35823299,178.89,178.81,8.3872]
[1641069288092,30.09823299,178.89,178.81,8.3872]
[1641069288293,30.09823299,178.89,178.8,8.3878]
[1641069288490,38.48623299,178.89,178.8,8.3878]
[1641069289491,38.74623299,178.89,178.8,8.3878]
[1641069290693,38.74623299,178.89,178.79,8.3883]
[1641069292115,8.388,178.89,178.79,8.3883]
[1641069292313,250.0,178.9,178.8,8.33]
[1641069292514,250.0,178.9,178.85,8.3836]
[1641069296319,250.0,178.9,178.84,8.3859]
[1641069296517,250.26,178.9,178.84,8.3859]
[1641069297321,250.0,178.9,178.84,8.3859]
[1641069299720,250.26,178.9,178.84,8.3859]
[1641069301426,250.0,178.9,178.84,8.3859]
[1641069301624,250.0,178.9,178.85,9.75669368]
[1641069301825,250.0,178.9,178.87,8.3833]
[1641069302125,250.0,178.9,178.87,16.7133]
[1641069303829,194.1286,178.9,178.87,16.7133]
[1641069304029,194.1286,178.9,178.87,18.39999368]
[1641069304228,194.1286,178.9,178.87,18.13999368]
[1641069305529,194.1286,178.9,178.87,18.39999368]
[1641069306428,194.1286,178.9,178.87,18.13999368]
[1641069306631,194.1286,178.9,178.87,16.7133]
[1641069306837,31.00912923,178.89,178.87,8.3833]
[1641069308537,6.06210272,178.88,178.87,8.3833]
[1641069309241,31.00912923,178.89,178.87,8.3833]
[1641069309438,194.1286,178.9,178.87,9.80999368]
[1641069310073,194.1286,178.9,178.87,10.06999368]
[1641069310873,194.1286,178.9,178.87,9.80999368]
[1641069312974,194.1286,178.9,178.87,10.06999368]
[1641069313577,194.1286,178.9,178.87,9.80999368]
[1641069314182,194.1286,178.9,178.87,10.06999368]
[1641069314578,194.1286,178.9,178.87,9.80999368]
[1641069319383,194.1286,178.9,178.87,18.13999368]
[1641069321189,194.1286,178.9,178.87,16.7133]
[1641069326796,87.2603,178.9,178.88,1.42669368]
[1641069326994,0.08121775,178.94,178.89,16.71]
[1641069327192,120.45833341,179.0,178.89,16.71]
[1641069327392,120.45833341,179.0,178.9,1.42669368]
[1641069327595,120.45833341,179.0,178.91,8.33]
[1641069327794,120.45833341,179.0,178.91,24.46317615]
[1641069327999,120.45833341,179.0,178.96,8.3755]
[1641069328000,64.62183341,179.0,178.96,8.3755]
[1641069328193,64.62183341,179.0,178.97,8.33]
[1641069328394,1.374604,179.05,178.97,18.26820988]
[1641069328617,1.374604,179.05,178.98,105.55669368]
[1641069328817,1.374604,179.05,178.99,8.33]
[1641069329018,1.374604,179.05,179.02,8.3738]
[1641069329218,1.374604,179.05,179.03,8.33]
[1641069330225,1.374604,179.05,179.04,8.3745]
[1641069330420,1.374604,179.05,179.04,16.7045]